bitfinex/quotes_ETHUSD_20260202
["timestamp","ask_amount","ask_price","bid_price","bid_amount"]
[1770000243043,2.29791113,2279.3,2277.7,1.39478884]
[1770000243226,1.09692422,2279.1,2277.8,1.09755026]
[1770000244331,0.92,2279.0,2277.7,1.39478884]
[1770000244554,0.92,2279.0,2277.0,1.89928197]
[1770000244555,0.13184205,2278.5,2277.0,1.89928197]
[1770000244854,0.13184205,2278.0,2277.0,1.09793454]
[1770000245050,0.13184205,2278.0,2276.8,1.09800028]
[1770000245357,1.09755026,2277.8,2277.0,1.09791352]
[1770000245526,1.09753862,2277.9,2277.0,1.09791352]
[1770000245718,1.09753862,2277.9,2276.5,0.001]
[1770000245922,0.5487547,2277.8,2276.9,1.09797821]
[1770000246347,1.09747554,2278.0,2276.9,1.09797821]
[1770000247420,1.22919961,2278.2,2276.7,4.3919364]
[1770000249070,1.09733862,2278.3,2276.8,13.38608294]
[1770000249226,2.01729295,2278.4,2276.8,13.38608294]
[1770000249557,4.38754524,2279.2,2277.2,13.51792499]
[1770000249743,4.38754524,2279.2,2277.4,13.38608294]
[1770000250143,0.13184205,2279.1,2277.4,13.38608294]
[1770000250345,0.13184205,2279.0,2277.4,13.38608294]
[1770000250854,12.8137615,2279.0,2277.3,2.2849767]
[1770000251056,12.8137615,2278.8,2277.3,0.92]
[1770000251430,12.8137615,2278.8,2277.4,1.09774304]
[1770000251431,1.09711677,2278.7,2277.4,1.09774304]
[1770000251942,13.77903622,2278.7,2277.3,0.92]
[1770000252135,14.83087827,2278.7,2277.2,1.09781062]
[1770000252342,14.83087827,2278.7,2277.3,1.09778689]
[1770000252343,2.06696079,2278.6,2277.3,1.09778689]
[1770000253529,1.09721307,2278.5,2277.0,4.39171744]
[1770000255757,3.03230015,2278.6,2277.1,13.38608294]
[1770000255959,2.01825392,2278.7,2277.1,13.51792499]
[1770000256263,2.01825392,2278.7,2277.3,13.38608294]
[1770000258254,14.83201542,2278.7,2276.9,18.69894097]
[1770000258448,12.8137615,2278.6,2277.3,1.09778844]
[1770000258641,1.49638575,2278.5,2277.3,1.09778844]
[1770000259052,2.01825392,2278.7,2277.3,14.48387138]
[1770000259256,2.01823521,2278.7,2277.3,14.48387138]
[1770000259430,0.0011,2278.7,2277.5,13.38608294]
[1770000259747,1.09822173,2278.7,2277.5,13.38608294]
[1770000260142,0.0011,2278.7,2277.6,1.09764664]
[1770000260335,0.0011,2278.7,2277.7,1.88743162]
[1770000260531,0.0011,2278.7,2277.9,13.38608294]
[1770000260832,0.0011,2278.7,2277.8,0.92]
[1770000261263,0.0011,2278.7,2277.6,1.09764664]
[1770000261633,0.0011,2278.7,2277.5,15.59765903]
[1770000261833,0.0011,2278.7,2277.5,1.09765903]
[1770000262046,0.0011,2278.7,2277.6,0.640856]
[1770000262769,0.0011,2278.7,2277.6,1.09764369]
[1770000263064,0.0011,2278.7,2277.5,1.09766061]
[1770000263274,0.13184205,2277.6,2276.9,0.001]
[1770000263568,0.13184205,2277.6,2276.6,0.001]
[1770000263569,0.13184205,2277.0,2276.6,0.001]
[1770000263768,0.13184205,2277.0,2276.5,0.001]
[1770000263947,0.13184205,2277.3,2276.5,0.001]
[1770000264152,1.09774304,2277.4,2276.5,0.001]
[1770000264355,0.56205573,2277.3,2276.5,0.001]
[1770000264872,1.18071017,2277.3,2276.5,0.001]
[1770000265079,0.61865444,2277.2,2276.5,0.001]
[1770000265558,0.56205573,2277.3,2276.5,0.001]
[1770000266068,0.75049649,2277.2,2276.5,0.001]
[1770000266368,1.09788766,2277.1,2276.3,0.001]
[1770000266588,1.09788766,2277.1,2275.7,0.001]
[1770000266589,0.13184205,2276.9,2275.7,0.001]
[1770000266754,0.13184205,2276.7,2275.7,0.001]
[1770000267091,0.92,2276.8,2275.7,0.001]
[1770000267580,0.69397009,2277.0,2276.0,1.09838558]
[1770000267581,0.56212804,2277.0,2276.0,1.09838558]
[1770000267772,1.09788766,2277.1,2275.7,13.38708294]
[1770000267982,1.09788766,2277.1,2275.9,1.09842579]
[1770000268146,1.09788766,2277.1,2275.8,1.0984974]
[1770000268448,4.39155065,2277.2,2275.8,1.0984974]
[1770000268775,4.39155065,2277.2,2275.8,14.48458034]
[1770000269079,4.39155065,2277.2,2275.9,1.88797771]
[1770000269648,4.39155065,2277.2,2275.9,16.38797771]
[1770000269844,1.09783945,2277.2,2276.0,13.38608294]
[1770000270050,1.09777693,2277.4,2276.0,13.38608294]
[1770000270243,1.09755026,2277.8,2276.2,13.51792499]
[1770000270448,0.54877513,2277.8,2276.4,13.38608294]
[1770000270746,1.09836123,2278.5,2276.5,14.43792499]
[1770000270942,4.38923532,2278.4,2276.7,13.51792499]
[1770000271145,4.38923532,2278.4,2276.7,13.38608294]
[1770000271344,0.13184205,2278.3,2276.7,13.38608294]
[1770000271669,0.72015432,2278.3,2276.8,15.99234023]
[1770000271855,0.72015432,2278.3,2276.8,0.57234023]
[1770000272047,0.13184205,2278.2,2276.8,0.57234023]
[1770000272449,1.09740573,2278.1,2276.9,1.0979841]
[1770000272648,1.09740573,2278.1,2276.8,1.67034]
[1770000272844,0.61983585,2278.0,2276.8,14.48411246]
[1770000273060,1.09740573,2278.1,2276.8,14.48411246]
[1770000274176,1.09740573,2278.1,2276.8,15.40411246]
[1770000275377,1.09740573,2278.1,2276.9,27.88608294]
[1770000275572,1.09740573,2278.1,2277.0,13.38608294]
[1770000276542,0.0011,2278.5,2277.0,13.38608294]
[1770000276743,0.0011,2278.5,2277.2,1.09783945]
[1770000277253,0.0011,2278.5,2277.3,14.5]
[1770000277450,0.0011,2278.5,2277.4,0.92]
[1770000277754,0.0011,2278.5,2277.4,14.83089077]
[1770000278204,0.0011,2278.5,2277.4,13.91089077]
[1770000278381,0.0011,2278.5,2277.5,15.86757712]
[1770000278548,0.0011,2278.5,2277.5,1.03668635]
[1770000278755,0.0011,2278.5,2277.2,1.09783945]
[1770000278756,0.0011,2278.5,2277.3,0.92]
[1770000280062,0.0011,2278.5,2277.3,14.83089077]
[1770000280686,0.0011,2278.5,2277.2,1.09783945]
[1770000280990,0.0011,2278.5,2277.3,0.92]
[1770000283089,0.0011,2278.5,2277.4,0.92]
[1770000283992,0.58058777,2278.5,2277.4,0.92]
[1770000284867,1.09726123,2278.4,2277.4,2.01771543]
[1770000285166,0.60668939,2278.3,2277.4,2.65860285]
[1770000285366,0.60668939,2278.3,2277.4,1.56088742]
[1770000285702,0.60668939,2278.3,2277.4,2.65862793]
[1770000287065,1.09735756,2278.2,2277.4,2.65862793]
[1770000287790,0.60668939,2278.3,2277.4,2.65862793]
[1770000287970,1.09730704,2278.4,2277.5,0.70497924]
[1770000288685,22.90462982,2278.3,2277.0,0.001]
[1770000288883,13.84902538,2278.1,2277.0,0.001]
[1770000289084,0.13184205,2277.9,2277.0,0.001]
[1770000289285,0.13184205,2277.8,2277.0,0.001]
[1770000289502,0.13184205,2277.4,2275.9,14.778003]
[1770000289674,0.13184205,2277.2,2276.0,1.09839578]
[1770000290001,0.13184205,2277.1,2276.0,1.09837456]
[1770000290216,0.13184205,2277.1,2275.9,2.01844716]
[1770000290421,0.13184205,2277.1,2275.9,0.92]
[1770000290597,0.13184205,2277.2,2276.1,1.09833679]
[1770000291179,2.01777268,2277.4,2276.2,14.77788203]
[1770000291582,2.01777268,2277.4,2276.2,1.09832169]
[1770000291794,2.14961473,2277.4,2276.2,1.09832169]
[1770000292300,1.09777268,2277.4,2276.2,14.77788203]
[1770000292500,2.09892858,2277.4,2276.3,1.91721691]
[1770000292707,0.13184205,2277.3,2276.1,0.001]
[1770000292914,0.13184205,2277.3,2276.1,1.09936386]
[1770000293077,2.23077063,2277.4,2276.2,13.67956034]
[1770000293078,2.09892858,2277.4,2276.2,13.67956034]
[1770000293279,1.09777268,2277.4,2276.2,13.67956034]
[1770000293485,4.390418,2277.7,2276.2,13.67956034]
[1770000294007,4.390418,2277.7,2276.3,0.92]
[1770000294008,0.13184205,2277.6,2276.3,0.92]
[1770000294204,0.13184205,2277.5,2276.3,0.92]
[1770000294411,0.13184205,2277.6,2276.4,1.45995603]
[1770000295085,4.52226005,2277.7,2276.5,1.09817702]
[1770000295285,4.52226005,2277.7,2276.4,2.55814612]
[1770000295507,0.13184205,2277.5,2276.4,1.45995603]
[1770000295680,0.13184205,2277.5,2276.3,0.92]
[1770000295681,0.13184205,2277.3,2276.3,0.92]
[1770000295888,0.92,2277.4,2276.4,1.09819995]
[1770000296681,0.92,2277.4,2276.3,2.01823469]
[1770000296987,0.92,2277.4,2276.4,1.09822333]
[1770000297187,1.09779124,2277.3,2276.4,1.09822333]
[1770000297412,1.09779124,2277.3,2276.5,0.64112754]
[1770000298088,1.22963329,2277.3,2276.1,0.001]
[1770000298289,0.13184205,2277.2,2276.1,0.001]
[1770000298506,0.13184205,2277.2,2276.2,1.0982997]
[1770000298708,1.09779124,2277.3,2276.2,1.0982997]
[1770000298991,0.65407983,2277.2,2276.2,1.64757707]
[1770000299318,1.09788766,2277.1,2276.2,1.64756129]
[1770000300310,1.0977277,2277.5,2276.2,15.32712163]
[1770000300746,0.71242982,2277.9,2276.2,15.32712163]
[1770000300747,0.0011,2277.9,2276.2,15.32712163]
[1770000300890,0.0011,2277.9,2276.7,13.67956034]
[1770000301099,0.0011,2278.5,2277.0,13.67956034]
[1770000301314,0.0011,2278.5,2277.2,13.81140239]
[1770000301525,0.0011,2278.9,2277.6,13.67956034]
[1770000302324,4.38678892,2279.6,2277.9,13.81140239]
[1770000302633,0.13184205,2279.4,2277.9,13.67956034]
[1770000302802,4.38678892,2279.6,2278.0,14.66887693]
[1770000303205,0.13294205,2279.7,2278.1,1.09740573]
[1770000303533,0.13184205,2279.3,2278.0,0.98931659]
[1770000303723,0.57948777,2279.2,2278.0,1.09744626]
[1770000304402,0.13184205,2278.9,2277.3,1.09778278]
[1770000304615,0.13184205,2279.1,2278.0,1.09744765]
[1770000304824,0.71132982,2279.1,2277.8,1.09752084]
[1770000305041,0.57948777,2279.0,2277.5,13.67956034]
[1770000305242,1.09702049,2278.9,2277.7,1.09756623]
[1770000305430,0.13184205,2278.6,2277.1,14.77740452]
[1770000305639,0.13184205,2278.6,2277.3,1.09775919]
[1770000305944,0.13184205,2278.6,2277.0,4.39169696]
[1770000305945,0.13184205,2278.4,2277.0,1.09791216]
[1770000306147,0.13184205,2278.6,2277.6,1.0976457]
[1770000306447,1.05294205,2278.7,2277.3,1.09776292]
[1770000306627,0.13184205,2278.6,2277.4,1.09773932]
[1770000306947,0.13184205,2278.6,2277.5,1.09768946]
[1770000307151,0.13184205,2278.6,2277.6,1.0976216]
[1770000307336,1.09716492,2278.6,2277.2,18.07086346]
[1770000307649,1.09716492,2278.6,2277.3,1.97176745]
[1770000308721,13.40494918,2278.5,2277.3,1.97176745]
[1770000308923,0.13184205,2278.3,2276.7,15.05985307]
[1770000309121,0.13184205,2278.1,2276.3,19.92995935]
[1770000309426,0.13184205,2278.1,2276.5,15.05997111]
[1770000309427,1.0974539,2278.0,2276.5,15.05997111]
[1770000309822,1.22929595,2278.0,2276.4,0.92]
[1770000310120,0.13184205,2277.4,2276.3,1.57510003]
[1770000310356,0.13184205,2277.0,2276.1,0.001]
[1770000310524,0.13184205,2277.0,2275.5,1.09862581]
[1770000310525,0.13184205,2276.9,2275.5,1.09862581]
[1770000310720,0.13184205,2276.9,2275.5,1.09862196]
[1770000310922,0.13184205,2276.9,2275.6,0.549344]
[1770000310923,0.13184205,2276.7,2275.6,0.549344]
[1770000311139,0.13184205,2276.3,2274.9,0.001]
[1770000311358,1.23035685,2275.8,2274.9,0.001]
[1770000311859,0.13184205,2275.5,2274.9,0.001]
[1770000312030,0.13184205,2275.7,2274.9,0.001]
[1770000312363,0.13184205,2275.6,2274.9,0.001]
[1770000312524,0.13184205,2275.6,2274.3,15.06102779]
[1770000312849,1.0985148,2275.8,2274.4,15.90760726]
[1770000313430,1.23021206,2276.1,2274.5,1.09914266]
[1770000313636,4.39405923,2276.0,2274.5,1.09914266]
[1770000313832,1.09837001,2276.1,2274.5,15.06093675]
[1770000314851,1.23021206,2276.1,2274.4,3.04498765]
[1770000315053,1.23021206,2276.1,2274.4,1.09917448]
[1770000315054,0.66761133,2276.0,2274.4,1.09917448]
[1770000315752,1.23030859,2275.9,2274.3,0.92]
[1770000315960,0.13184205,2275.8,2274.2,1.0992502]
[1770000316254,0.13184205,2275.2,2273.9,1.89071018]
[1770000316441,0.13184205,2275.2,2273.9,2.51957028]
[1770000316644,0.13184205,2275.2,2274.0,1.09935823]
[1770000317047,13.40494918,2275.0,2273.6,1.09956954]
[1770000317247,13.40494918,2275.0,2273.1,13.96179409]
[1770000317248,0.1024,2274.9,2273.1,13.96179409]
[1770000317569,1.0988045,2275.2,2273.5,18.3602716]
[1770000317858,0.55964225,2275.1,2273.6,3.38862023]
[1770000318028,1.09856307,2275.7,2274.5,0.001]
[1770000318228,1.09855022,2275.8,2274.6,0.13184205]
[1770000318638,1.09855022,2275.8,2274.5,0.001]
[1770000319043,0.66761133,2276.0,2274.8,0.13184205]
[1770000319242,1.09843253,2276.0,2275.1,0.13184205]
[1770000319758,0.921,2276.3,2275.1,0.13184205]
[1770000319759,1.09832176,2276.2,2275.3,1.0987562]
[1770000319965,1.09832176,2276.2,2275.0,1.09888227]
[1770000320264,2.01928638,2276.3,2275.3,0.13184205]
[1770000320446,4.39190794,2277.0,2275.5,0.13184205]
[1770000320763,0.54898438,2276.9,2275.6,0.13184205]
[1770000320962,0.54898438,2276.9,2275.5,1.43573202]
[1770000321263,13.37550713,2276.8,2275.2,1.09879208]
[1770000321465,13.50734918,2276.8,2275.2,1.09879208]
[1770000321675,14.37118768,2276.7,2275.0,1.09890109]
[1770000321838,14.37118768,2276.7,2274.9,1.09894542]
[1770000321839,13.50734918,2276.6,2274.9,1.09894542]
[1770000322171,0.1024,2276.4,2274.9,1.09894542]
[1770000322379,13.27310713,2276.1,2274.5,0.001]
[1770000322670,0.1024,2276.2,2274.9,1.09892653]
[1770000323037,1.05284205,2276.4,2274.9,1.09892653]
[1770000323239,0.26584113,2276.3,2274.9,0.54947547]
[1770000323543,0.26584113,2276.3,2274.9,1.09894777]
[1770000323737,1.09832176,2276.2,2274.8,1.09899771]
[1770000323971,1.09832176,2276.2,2274.5,0.001]
[1770000323972,13.27310713,2275.8,2274.5,0.001]
[1770000324269,13.27310713,2275.8,2274.3,0.001]
[1770000324270,14.42834918,2275.7,2274.3,0.001]
[1770000324474,13.27310713,2275.6,2274.3,0.001]
[1770000324670,1.44283492,2275.5,2274.3,0.001]
[1770000325181,1.44283492,2275.5,2273.3,0.001]
[1770000325182,13.37550713,2274.7,2273.3,0.001]
[1770000325344,13.37550713,2274.5,2273.3,0.001]
[1770000325544,13.50734918,2274.5,2273.3,0.001]
[1770000325870,1.09923932,2274.3,2273.3,0.001]
[1770000329560,0.13184205,2273.8,2272.1,0.59290241]
[1770000329762,0.1024,2273.4,2271.6,0.1112816]
[1770000329958,0.13184205,2273.3,2271.6,0.1112816]
[1770000330159,0.13184205,2273.1,2271.6,0.1112816]
[1770000330358,1.05284205,2273.0,2271.6,0.1112816]
[1770000330559,0.921,2273.0,2271.6,14.07307569]
[1770000330763,0.1024,2272.8,2271.6,0.1112816]
[1770000330941,0.13184205,2272.6,2271.6,0.1112816]
[1770000331144,0.13184205,2272.5,2270.6,14.18384307]
[1770000331340,9.93227284,2272.9,2270.6,14.18384307]
[1770000331341,1.05284205,2273.2,2271.3,13.96179409]
[1770000331595,0.13184205,2273.0,2271.3,13.96179409]
[1770000331794,1.0999648,2272.8,2270.9,13.96179409]
[1770000332084,0.13184205,2272.6,2271.0,13.96179409]
[1770000332286,0.13184205,2272.7,2271.1,1.39617941]
[1770000332581,0.13184205,2272.6,2271.1,1.39617941]
[1770000333144,0.13184205,2272.6,2270.6,1.01120693]
[1770000333145,0.13184205,2272.3,2270.6,1.01120693]
[1770000333348,13.40494918,2271.7,2269.6,0.22767587]
[1770000333548,10.03467284,2271.8,2269.8,13.96179409]
[1770000333549,3.2649622,2271.6,2269.8,13.96179409]
[1770000333745,3.2649622,2271.6,2269.7,0.13184205]
[1770000333746,1.10059432,2271.5,2270.1,15.06306716]
[1770000333989,1.10059432,2271.5,2270.1,13.96179409]
[1770000334471,0.13184205,2271.1,2269.1,13.96179409]
[1770000334684,0.13184205,2270.9,2269.1,13.96179409]
[1770000334887,0.23424205,2270.9,2269.1,13.96179409]
[1770000335192,0.23424205,2270.9,2268.2,0.9130202]
[1770000335193,0.23424205,2270.3,2268.2,0.9130202]
[1770000335487,1.05384205,2270.5,2268.7,13.96179409]
[1770000335786,1.10117605,2270.3,2268.3,1.05384205]
[1770000335961,1.10117605,2270.3,2268.6,13.96179409]
[1770000336165,13.40494918,2270.0,2268.2,0.9130202]
[1770000336356,13.27310713,2269.6,2267.5,0.13184205]
[1770000336557,0.13184205,2269.5,2267.5,0.13184205]
[1770000336758,0.13184205,2269.4,2267.4,14.09363614]
[1770000336955,0.13184205,2269.1,2267.0,14.99507569]
[1770000337184,13.40494918,2269.2,2267.3,0.13184205]
[1770000337389,0.13184205,2269.3,2267.0,0.1112816]
[1770000337390,13.27310713,2268.6,2267.0,0.1112816]
[1770000337560,0.13184205,2268.2,2267.0,0.1112816]
[1770000337757,0.13184205,2268.0,2267.0,0.1112816]
[1770000337957,1.34049492,2268.5,2267.0,0.1112816]
[1770000338257,4.53868458,2269.2,2267.2,12.88781355]
[1770000338480,13.17559213,2269.1,2267.1,0.13184205]
[1770000338685,0.13184205,2269.1,2267.1,13.6779715]
[1770000338886,0.13184205,2268.6,2267.0,0.1112816]
[1770000339061,0.13184205,2268.7,2267.1,1.10273036]
[1770000339383,1.05384205,2269.1,2267.1,13.85870186]
[1770000339588,0.13184205,2269.0,2267.3,12.7559715]
[1770000339789,0.13184205,2269.3,2267.4,13.85855595]
[1770000340097,1.10132177,2270.0,2268.0,12.88781355]
[1770000340304,0.13184205,2269.8,2267.6,1.05484205]
[1770000340459,0.13184205,2269.7,2267.7,0.13184205]
[1770000340661,0.13184205,2269.7,2267.1,0.36541235]
[1770000340662,13.30743418,2269.5,2267.4,1.05484205]
[1770000341004,0.13184205,2269.8,2267.6,12.88781355]
[1770000341158,0.13184205,2269.9,2267.8,12.88781355]
[1770000341362,0.13184205,2269.8,2267.8,12.7559715]
[1770000341591,0.13184205,2269.7,2267.8,12.7559715]
[1770000341788,0.13184205,2269.7,2267.5,0.13184205]
[1770000341789,14.40909548,2269.3,2267.5,1.10253583]
[1770000341987,0.13184205,2269.4,2267.5,13.85850733]
[1770000342196,0.13184205,2269.6,2267.5,13.85850733]
[1770000342197,0.13184205,2269.6,2267.7,12.88781355]
[1770000342602,0.13184205,2269.7,2267.7,12.88781355]
[1770000342783,0.13184205,2269.5,2267.8,0.923]
[1770000343173,0.13184205,2269.5,2267.5,1.10253583]
[1770000343174,13.30743418,2269.0,2267.5,1.10253583]
[1770000343376,1.47576967,2268.9,2267.5,1.10253583]
[1770000343593,1.47576967,2268.9,2267.7,0.001]
[1770000343594,1.34392762,2268.9,2267.7,0.001]
[1770000343802,1.05484205,2269.2,2267.7,0.001]
[1770000343803,1.23362012,2269.1,2267.7,0.001]
[1770000344008,0.923,2269.2,2267.7,0.001]
[1770000344303,13.17559213,2268.8,2267.7,0.001]
[1770000344494,0.13184205,2268.5,2267.5,0.001]
[1770000344690,1.41139394,2268.5,2267.5,0.001]
[1770000345094,0.13184205,2268.4,2267.5,0.001]
[1770000345275,14.71882812,2268.5,2267.5,0.001]
[1770000345479,0.13184205,2268.4,2267.5,0.001]
[1770000345679,13.17559213,2268.4,2267.5,0.001]
[1770000345908,14.40966381,2268.2,2267.0,1.21403011]
[1770000346084,0.13184205,2267.7,2267.0,0.1112816]
[1770000346393,0.13184205,2268.1,2267.0,0.1112816]
[1770000346394,13.30743418,2268.7,2267.0,1.21405853]
[1770000346691,0.00431146,2268.6,2267.2,13.42185431]
[1770000346895,0.00431146,2268.6,2267.3,13.42185431]
[1770000347095,0.00431146,2268.6,2267.4,0.923]
[1770000347376,0.00431146,2268.6,2267.3,13.42185431]
[1770000347583,0.00431146,2268.6,2267.4,0.923]
[1770000347804,0.00431146,2268.6,2267.4,14.34485431]
[1770000348113,0.13184205,2269.4,2267.4,1.10253629]
[1770000348114,13.52730795,2268.5,2267.4,1.10253629]
[1770000348277,1.48457285,2268.4,2267.0,0.1112816]
[1770000348478,1.3527308,2268.4,2267.4,1.10256445]
[1770000348705,13.65915,2268.6,2267.4,1.10256445]
[1770000348879,0.13184205,2268.5,2267.4,1.10256445]
[1770000349080,0.13184205,2268.5,2267.0,0.1112816]
[1770000349081,13.65915,2268.2,2267.0,0.1112816]
[1770000349280,0.13184205,2267.7,2267.0,0.1112816]
[1770000349514,1.39228341,2267.7,2267.0,0.1112816]
[1770000349891,2.02524858,2268.1,2267.0,0.1112816]
[1770000350103,2.02524858,2268.1,2267.0,1.21404589]
[1770000350409,13.52730795,2268.1,2267.0,1.2140516]
[1770000350611,13.52730795,2268.6,2267.0,1.2140516]
[1770000350789,1.365915,2268.6,2267.0,1.2140516]
[1770000351108,0.13184205,2268.9,2267.0,1.2140516]
[1770000351109,14.6292612,2268.7,2267.0,1.2140516]
[1770000351313,14.76110325,2268.7,2267.0,1.2140516]
[1770000351511,1.10193214,2268.8,2267.0,1.34589365]
[1770000351717,14.62924009,2268.8,2267.0,1.34589365]
[1770000351885,1.10209839,2268.4,2267.0,1.2140516]
[1770000352085,1.9169642,2268.3,2267.0,1.2140516]
[1770000352280,1.9169642,2268.3,2267.0,1.21405891]
[1770000352512,1.10209839,2268.4,2267.0,1.21405891]
[1770000352713,14.76124839,2268.4,2267.0,1.21405891]
[1770000353010,0.13184205,2268.8,2267.0,1.21405891]
[1770000353211,1.10191304,2268.8,2267.0,1.34590096]
[1770000353413,14.62922099,2268.8,2267.0,1.34590096]
[1770000353603,15.56283374,2268.7,2267.0,1.21405891]
[1770000353919,1.10209839,2268.4,2267.0,1.21405891]
[1770000354092,14.76123266,2268.5,2267.0,1.21405891]
[1770000354291,1.10202603,2268.6,2267.0,1.34590096]
[1770000355093,4.4074714,2268.9,2267.3,0.13184205]
[1770000355299,13.65915,2268.8,2267.0,1.21405891]
[1770000355498,13.65915,2268.6,2267.0,0.1112816]
[1770000355712,0.13184205,2268.5,2267.0,1.21405947]
[1770000355913,1.10195266,2268.7,2267.0,14.63591378]
[1770000356102,3.01411578,2268.9,2267.2,0.13184205]
[1770000356305,3.01409882,2268.9,2267.4,0.13184205]
[1770000356615,16.67324882,2268.9,2267.0,1.21405947]
[1770000357317,16.54140677,2268.9,2267.0,1.34590152]
[1770000357622,13.52730795,2268.7,2267.2,0.001]
[1770000357925,1.10219557,2268.2,2267.2,0.001]
[1770000358419,1.10219557,2268.2,2267.0,1.21505861]
[1770000358420,14.76134557,2268.2,2267.0,0.1122816]
[1770000359486,1.10219557,2268.2,2267.0,1.21502792]
[1770000359689,0.924,2268.3,2267.0,1.34686997]
[1770000359930,1.10215173,2268.3,2267.0,1.34686997]
[1770000360234,1.367015,2268.6,2267.0,14.50504018]
[1770000360436,0.0011,2268.6,2267.5,13.42185431]
[1770000360594,1.10117605,2270.3,2268.3,0.13184205]
[1770000360791,0.13184205,2270.1,2268.2,13.42185431]
[1770000361036,1.10116386,2270.4,2268.5,0.13184205]
[1770000361187,14.76031386,2270.4,2268.3,1.05584205]
[1770000361527,14.76031386,2270.4,2268.2,0.13184205]
[1770000361528,15.57563241,2270.3,2268.2,0.13184205]
[1770000361821,13.65915,2270.1,2268.2,1.05584205]
[1770000362188,13.65915,2270.1,2268.1,0.13184205]
[1770000362189,13.52730795,2269.8,2268.1,1.1022401]
[1770000362388,13.52730795,2269.6,2268.2,1.10219061]
[1770000362605,1.3527308,2269.5,2268.2,1.10219061]
[1770000362927,13.52730795,2269.6,2268.2,1.10219061]
[1770000363137,13.52730795,2269.6,2268.2,1.10218372]
[1770000363429,13.52290795,2269.6,2268.2,1.10218372]
[1770000363650,10.03467284,2269.5,2266.9,13.42185431]
[1770000363793,2.25956363,2270.0,2266.9,13.42185431]
[1770000363794,1.16062436,2270.2,2268.3,13.29001226]
[1770000363993,1.10101009,2270.7,2268.6,0.13184205]
[1770000364194,14.6284355,2270.4,2268.5,1.10204981]
[1770000364494,13.52730795,2270.2,2268.5,1.10204981]
[1770000364735,13.65915,2270.2,2268.5,1.10204981]
[1770000364890,14.6284355,2270.4,2268.5,1.10204981]
[1770000365097,15.57562878,2270.3,2268.6,0.55102491]
[1770000365323,15.57562878,2270.3,2268.8,0.13184205]
[1770000365324,1.91647878,2270.3,2268.8,0.13184205]
[1770000365507,13.52730795,2270.1,2268.6,0.55102491]
[1770000365997,13.65915,2269.9,2268.4,1.10208819]
[1770000366193,1.10141862,2269.8,2268.0,1.23408621]
[1770000366511,1.10141862,2269.8,2268.4,0.13184205]
[1770000366817,14.62872657,2269.8,2268.2,0.13184205]
[1770000367457,14.62872657,2269.8,2267.4,0.13184205]
[1770000367458,13.52730795,2269.6,2267.6,1.10247937]
[1770000367595,13.52730795,2269.6,2267.0,0.1122816]
[1770000367596,14.03498043,2269.1,2267.8,1.10236443]
[1770000367924,13.90313838,2269.1,2267.6,1.10245214]
[1770000368224,1.10180696,2269.0,2267.6,4.40989711]
[1770000368411,1.10180696,2269.0,2267.7,0.55124329]
[1770000368412,2.505305,2269.0,2267.7,0.55124329]
[1770000368611,2.02558389,2269.5,2267.7,0.68308534]
[1770000368829,15.92872227,2269.5,2267.7,0.55124329]
[1770000369130,15.92872227,2269.5,2267.5,1.10253583]
[1770000369131,13.90313838,2269.1,2267.5,1.10253583]
[1770000369600,13.90313838,2268.8,2267.0,0.1122816]
[1770000369802,0.924,2268.7,2267.4,1.10258391]
[1770000370112,13.90313838,2269.2,2267.4,1.10258391]
[1770000370297,1.1017584,2269.1,2267.4,1.10258391]
[1770000370925,16.90808202,2269.7,2267.8,0.13184205]
[1770000371123,16.90808202,2269.7,2267.9,0.13284205]
[1770000371427,2.22379506,2269.6,2268.0,0.13184205]
[1770000371603,2.22379506,2269.6,2267.9,0.13284205]
[1770000371799,16.12693344,2269.6,2267.9,0.001]
[1770000372406,1.10156422,2269.5,2268.0,1.10229276]
[1770000372628,15.0047026,2269.5,2268.0,1.10229276]
[1770000372935,3.32531387,2269.6,2268.1,0.55124638]
[1770000373095,1.1013701,2269.9,2268.1,0.68308843]
[1770000373437,0.0011,2270.0,2268.4,0.13184205]
[1770000373597,1.10242802,2270.0,2268.6,0.13184205]
[1770000373796,1.10242543,2270.0,2268.6,13.88809343]
[1770000374103,0.0011,2270.0,2268.7,0.44630034]
[1770000374314,0.0011,2270.0,2268.8,1.10190409]
[1770000374813,0.0011,2270.0,2268.7,1.54824805]
[1770000375618,0.0011,2270.0,2268.7,0.44630034]
[1770000375831,13.90423838,2270.0,2268.7,1.10194315]
[1770000376193,0.0011,2270.0,2268.7,1.10194315]
[1770000376401,0.0011,2270.0,2268.6,4.40781064]
[1770000377007,0.0011,2270.0,2268.6,4.53965269]
[1770000377217,0.0011,2270.0,2268.7,0.13184205]
[1770000377530,0.0011,2270.0,2269.1,0.13184205]
[1770000377729,0.0011,2270.0,2269.0,0.13184205]
[1770000378097,0.0011,2270.0,2268.9,0.13184205]
[1770000378424,0.0011,2270.0,2269.0,1.10180696]
[1770000378632,0.0011,2270.0,2269.0,1.23364901]
[1770000378930,1.10106671,2270.6,2269.0,1.23364901]
[1770000379121,13.90313838,2270.4,2268.9,1.10185127]
[1770000379316,13.90313838,2270.2,2268.7,1.10195006]
[1770000379627,13.90313838,2270.2,2268.8,1.10189578]
[1770000379628,14.53169402,2270.1,2268.8,1.10189578]
[1770000379829,17.26458917,2270.0,2268.5,4.40818522]
[1770000379994,17.26458917,2270.0,2268.3,4.40855708]
[1770000380200,13.90313838,2269.9,2268.6,1.10196874]
[1770000380632,1.10141862,2269.8,2268.2,4.40875924]
[1770000381203,7.76712529,2270.0,2268.2,4.40875924]
[1770000381204,3.53877734,2270.0,2268.6,0.13184205]
[1770000381399,0.924,2270.5,2268.9,0.13184205]
[1770000381601,15.92824144,2270.5,2268.9,0.13184205]
[1770000381898,15.92824144,2270.5,2268.7,0.13184205]
[1770000382127,16.06008349,2270.5,2268.6,0.13184205]
[1770000382403,2.05962418,2270.4,2268.6,0.13184205]
[1770000382706,1.10117605,2270.3,2268.7,1.23379471]
[1770000382895,1.10117605,2270.3,2269.1,0.13184205]
[1770000383096,0.924,2270.5,2269.2,0.13184205]
[1770000383376,1.10105761,2270.6,2269.3,14.5]
[1770000383527,14.45365637,2270.5,2268.7,1.10195266]
[1770000383699,14.45365637,2270.5,2268.8,0.13184205]
[1770000384426,14.45365637,2270.5,2268.9,0.13184205]
[1770000384677,1.10203359,2270.8,2269.1,1.23360045]
[1770000384801,14.03498043,2270.6,2269.1,1.1017584]
[1770000385004,13.90313838,2270.6,2269.1,1.1017584]
[1770000385211,14.03498043,2270.5,2269.0,1.10176994]
[1770000385426,0.924,2270.4,2269.0,1.10276994]
[1770000385603,1.48271384,2270.3,2269.1,0.55101517]
[1770000385809,15.38585222,2270.3,2269.1,0.55101517]
[1770000386011,15.38585222,2270.3,2269.0,1.10276994]
[1770000386214,1.48271384,2270.3,2269.0,1.10276994]